Cogmind - Beta 14 @@@ ROGUE MODE // 2024.09.03 @ 15:58:37 Player: THN-L0C Result: Destroyed by G-50 Soldier with Heavy Laser Performance ------------- Evolutions (2) 1000 Regions Visited (7) 1400 Robots Destroyed (72) 360 Value Destroyed (2259) 2259 Prototype IDs (27) 540 Alien Tech Used (0) 0 Bonus (-179) -179 TOTAL SCORE: 5380 Bonus ------- Follower Combat Kills 329 Aligned with FarCom 300 Friendly Fire -808 Cogmind --------- Core Integrity 0/550 Matter 290/300 Energy 35/100 System Corruption 0% Temperature Cool (18) Movement Rolling (150) Ox4 Location -8/Materials Parts ------- > --- POWER (1) -------- (None) > --- PROPULSION (2) --- Armored Wheel > --- UTILITY (5) ------ High-capacity Storage Unit > --- WEAPON (3) ------- YOLO Cannon > --- INVENTORY (20) --- Armored Treads High-capacity Matter Pod (69) Improved Sensor Array Launcher Guidance Computer Heavy Particle Gun Heavy Particle Cannon Ion Cannon Assault Cannon Flak Cannon Rocket Launcher Rocket Launcher Rocket Launcher Plasma Cutter Axe Makeshift Axe Peak State ------------ > --- POWER ------------ Improved Ion Engine > --- PROPULSION ------- Armored Wheel Armored Wheel > --- UTILITY ---------- Heat Sink High-capacity Storage Unit Improved Terrain Scanner Improved Targeting Computer Medium Armor Plating > --- WEAPON ----------- YOLO Cannon Assault Cannon > --- INVENTORY -------- Armored Wheel Armored Wheel High-capacity Matter Pod Improved Sensor Array Launcher Guidance Computer Improved EM Shotgun Heavy Particle Gun Heavy Particle Cannon Ion Cannon Heavy Assault Rifle Shotgun Shotgun Flak Cannon Rocket Launcher Rocket Launcher Rocket Launcher Plasma Cutter Makeshift Axe [Rating: 42] Favorites ----------- Power Makeshift Power Source Engine Makeshift Power Source Power Core Light Nuclear Core Propulsion Light Treads Treads Light Treads Leg Titanium Leg Wheel Armored Wheel Utility Large Storage Unit Device Seismic Detector Storage Large Storage Unit Processor Improved Targeting Computer Protection Improved Light Armor Plating Weapon Shotgun Energy Gun Improved EM Shotgun Energy Cannon Heavy Particle Cannon Ballistic Gun Shotgun Ballistic Cannon Assault Cannon Launcher Rocket Launcher Slashing Weapon Makeshift Axe Build | -11 -10 -10 -9 -9 -9 -8 -8 ------- Run | Yrd Mat Min Mat Min Exi Min Mat Slots Evolved 4 | . . . 2 . . . 2 Power . | . . . . . . . . Propulsion . | . . . . . . . . Utility 3 | . . . 2 . . . 1 Weapon 1 | . . . . . . . 1 Parts Attached 59 | 7 10 6 8 2 3 1 22 Power 6 | 1 2 1 . 1 . . 1 Engine 5 | 1 1 1 . 1 . . 1 Core 1 | . 1 . . . . . . Reactor . | . . . . . . . . Propulsion 9 | 2 1 2 . . 2 . 2 Treads 3 | 2 1 . . . . . . Leg 2 | . . 2 . . . . . Wheel 4 | . . . . . 2 . 2 Hover . | . . . . . . . . Flight . | . . . . . . . . Utility 14 | 2 3 1 4 1 1 . 2 Device 5 | 1 1 1 2 . . . . Storage 5 | 1 2 . 1 . 1 . . Processor 1 | . . . . . . . 1 Hackware . | . . . . . . . . Protection 3 | . . . 1 1 . . 1 Artifact . | . . . . . . . . Weapon 30 | 2 4 2 4 . . 1 17 Energy Gun 3 | . . . 1 . . . 2 Energy Cannon 6 | . . . . . . . 6 Ballistic Gun 18 | 2 4 1 3 . . . 8 Ballistic Cannon 1 | . . . . . . . 1 Launcher 1 | . . 1 . . . . . Special Weapon . | . . . . . . . . Impact Weapon . | . . . . . . . . Slashing Weapon 1 | . . . . . . 1 . Piercing Weapon . | . . . . . . . . Special Melee Weapon . | . . . . . . . . Unidentified Prototypes . | . . . . . . . . Parts Lost 20 | . 1 1 1 1 . . 16 Power 3 | . . . . 1 . . 2 Propulsion 3 | . . . . . . . 3 Utility 8 | . 1 1 1 . . . 5 Weapon 6 | . . . . . . . 6 Highest Loss Streak 9 | . 1 1 1 1 . . 9 To Critical Strikes . | . . . . . . . . Average Slot Usage (%) 96 | . 99 97 97 99 100 100 85 Engine 9 | . 8 9 11 10 11 11 7 Core 2 | . 5 4 . . . . . Treads 12 | . 28 24 . . . . . Leg 7 | . . 3 22 22 10 . . Wheel 4 | . . . . . 11 22 17 Device 15 | . 13 12 19 22 22 22 10 Storage 12 | . 14 14 11 11 11 11 9 Processor 1 | . . . . . . . 7 Protection 5 | . . . 11 11 11 11 7 Energy Gun 2 | . . . 1 11 11 11 2 Ballistic Gun 20 | . 28 23 20 11 11 11 14 Peak Build Rating 42 | 7 13 19 26 26 23 24 42 Average Rating 18 | 4 10 14 24 24 22 23 25 On Entrance 16 | . 7 13 19 26 23 23 24 Naked Turns . | . . . . . . . . Heaviest Build 79 | 15 32 33 35 42 62 62 79 Greatest Support 40 | 40 40 40 29 29 29 24 24 Greatest Overweight (x) 4 | 4 . 1 1 1 2 2 4 Average Overweight (x) . | . . . 1 1 1 2 2 Largest Inventory Capacity 20 | 8 15 15 15 15 20 20 20 Average Capacity 15 | 7 14 15 15 15 16 20 20 Most Carried 20 | 1 15 15 15 15 15 15 20 Average Carried 14 | . 11 14 14 14 14 15 16 Final Capacity 20 | 8 15 15 15 15 20 20 20 Final Carried 15 | 1 15 15 15 15 15 15 15 Class Distribution -------------------- 66% | Mutant 18% | Skirmisher 14% | Scavenger-Mutant Dominant Class ---------------- Mutant | -10/Materials Mutant | -10/Mines Scavenger-Mutant | -9/Materials Scavenger-Mutant | -9/Mines Mutant | -9/Exiles Skirmisher | -8/Mines Skirmisher | -8/Materials Resources | -11 -10 -10 -9 -9 -9 -8 -8 ----------- Run | Yrd Mat Min Mat Min Exi Min Mat Matter Collected 2020 | 184 695 169 216 36 . 30 690 Remotely . | . . . . . . . . Salvage Created 2392 | 14 819 93 449 16 . . 1001 Parts 165 | 4 54 14 29 4 . . 60 Haulers Intercepted 3 | . 2 . 1 . . . . Recyclers Shooed 1 | . . . 1 . . . . Parts Field Recycled . | . . . . . . . . Retrieved Matter . | . . . . . . . . Parts Self-Destructed . | . . . . . . . . Prevented . | . . . . . . . . Kills | -11 -10 -10 -9 -9 -9 -8 -8 ------- Run | Yrd Mat Min Mat Min Exi Min Mat Combat Hostiles Destroyed 56 | . 18 6 6 2 . . 24 Guns 42 | . 18 4 6 2 . . 12 Cannons 5 | . . . . . . . 5 AOE 7 | . . 2 . . . . 5 Classes Destroyed 16 | 1 2 2 4 1 . . 6 Worker 2 | . . . 1 . . . 1 Builder 4 | . . . . . . . 4 Tunneler 2 | 1 . 1 . . . . . Hauler 3 | . 2 . 1 . . . . Recycler 1 | . . . 1 . . . . Mechanic 1 | . . . . . . . 1 Watcher 1 | . . . 1 . . . . Swarmer 10 | . . 5 . 1 . . 4 Grunt 33 | . 18 1 4 . . . 10 Brawler 1 | . . . . . . . 1 Duelist 1 | . . . . . . . 1 Sentry 5 | . . . 2 . . . 3 Demolisher 1 | . . . . 1 . . . Specialist 4 | . . . . . . . 4 Heavy 1 | . . . . . . . 1 Zionite 1 | . . 1 . . . . . Best Kill Streak 8 | 1 3 2 2 1 . . 8 Combat Bots Only 7 | . 2 2 2 1 . . 7 Max Kills in Single Turn 3 | 1 1 2 2 1 . 1 3 Gunslinging . | . . . . . . . . Exploded 2 | . . 1 . . . . 2 Melee . | . . . . . . . . Uniques/NPCs Destroyed 1 | . . . . . . 1 . YI-UF0 (-8/Mines) Combat | -11 -10 -10 -9 -9 -9 -8 -8 -------- Run | Yrd Mat Min Mat Min Exi Min Mat Hostile Shots Fired 281 | . 64 19 18 10 . . 170 Missed 74 | . 21 2 5 1 . . 45 Damage Taken 3717 | . 531 259 229 380 . . 2318 Core 646 | . 33 10 20 30 . . 553 Absorbed by Shields . | . . . . . . . . Core Remaining (%) 89 | 100 . 82 . . . 87 . Volleys Fired 164 | 2 43 11 20 7 . . 81 Largest 3 | 2 2 2 2 2 . . 3 Hottest 144 | 40 46 56 68 68 . . 144 Shots Fired 297 | 4 86 18 40 14 . . 135 Gun 229 | 4 86 12 40 14 . . 73 Cannon 62 | . . . . . . . 62 Launcher 6 | . . 6 . . . . . Special . | . . . . . . . . Kinetic 259 | 4 86 12 39 7 . . 111 Thermal 10 | . . . . . . . 10 Explosive 6 | . . 6 . . . . . Electromagnetic 22 | . . . 1 7 . . 14 Robot Hit Streak 11 | 3 10 4 10 9 . . 11 Robot Miss Streak 5 | . 4 4 5 1 . . 4 Penetration Max . | . . . . . . . . Secondary Targets 1 | . 1 . . . . . . Max Gunslinging Chain 1 | . 1 . . . . . . Shots Hit Robots 192 | 3 67 9 25 12 . 1 75 Core Hits 129 | 1 41 11 18 7 . . 51 Critical Kills 4 | . 1 . . . . . 3 Critical Parts Destroyed . | . . . . . . . . Critical Strikes 4 | . 1 . . . . . 3 Meltdown 1 | . . . . . . . 1 Destroy 3 | . 1 . . . . . 2 Melee Attacks 1 | . . . . . . 1 . Impact . | . . . . . . . . Slashing 1 | . . . . . . 1 . Piercing . | . . . . . . . . Sneak Attacks 1 | . . . . . . 1 . Combat Hostiles . | . . . . . . . . Follow-up Attacks . | . . . . . . . . Damage Inflicted 5355 | 42 959 404 415 234 . 84 3217 Guns 2789 | 42 955 147 405 234 . . 1006 Cannons 943 | . . . . . . . 943 Explosions 1524 | . . 256 . . . . 1268 Melee 84 | . . . . . . 84 . Ramming 15 | . 4 1 10 . . . . Kinetic 2844 | 42 955 147 385 111 . . 1204 Thermal 1843 | . . . . . . . 1843 Explosive 256 | . . 256 . . . . . Electromagnetic 313 | . . . 20 123 . . 170 Impact . | . . . . . . . . Slashing 84 | . . . . . . 84 . Piercing . | . . . . . . . . Highest Corruption . | . . . . . . . . Average Corruption . | . . . . . . . . Corruption Purged . | . . . . . . . . Corruption Blocked . | . . . . . . . . Overload Shots . | . . . . . . . . Overflow Damage 100 | . . . . . . 44 56 Projectiles 27 | . . . . . . . 27 Explosions 29 | . . . . . . . 29 Melee 44 | . . . . . . 44 . Knockbacks 3 | . . . . . . . 3 Impact . | . . . . . . . . Kinetic 2 | . . . . . . . 2 Secondary 1 | . . . . . . . 1 Self-Inflicted Damage 215 | . . 64 . . . . 151 Shots 5 | . . 2 . . . . 3 Rammed 2 | . 2 . . . . . . Targets Rammed 4 | . 2 1 1 . . . . Kicked 1 | . . . 1 . . . . Crushed 1 | . . 1 . . . . . Highest Temperature 292 | . 38 28 32 . . . 292 Average Temperature 87 | . 8 12 13 . . . 121 Received Heat Transfer 1470 | . 318 111 150 . . . 891 Effects 1 | . . . . . . . 1 Energy Bleed 1 | . . . . . . . 1 Siege Activations . | . . . . . . . . Robots Corrupted . | . . . . . . . . Combat Hostiles . | . . . . . . . . Parts Fried . | . . . . . . . . Impact Corruptions . | . . . . . . . . Robots Melted 2 | . . . . . . . 2 Combat Hostiles 2 | . . . . . . . 2 Parts Melted 7 | . . . . . . . 7 Heat Transferred 1927 | . . . . . . . 1927 Parts Sabotaged . | . . . . . . . . Parts Stolen . | . . . . . . . . Parts Stripped . | . . . . . . . . Power Chain Reactions 1 | . . . . . . . 1 Alert | -11 -10 -10 -9 -9 -9 -8 -8 ------- Run | Yrd Mat Min Mat Min Exi Min Mat Peak Influence 344 | 5 230 328 166 92 . 287 344 Initial 111 | . 3 54 40 . . . 111 Average 98 | 1 78 153 48 59 . 215 137 Maximum Alert Level 1 | . 1 1 . . . 1 1 Low Security (%) 84 | 100 91 72 100 100 . 28 71 Level 1 15 | . 8 27 . . . 71 28 Level 2 . | . . . . . . . . Level 3 . | . . . . . . . . Level 4 . | . . . . . . . . Level 5 . | . . . . . . . . High Security . | . . . . . . . . Max Security . | . . . . . . . . Squads Dispatched 10 | . 6 1 . . . . 3 Investigation 6 | . 5 1 . . . . . Extermination . | . . . . . . . . Reinforcement 4 | . 1 . . . . . 3 Assault . | . . . . . . . . Garrison . | . . . . . . . . Intercept . | . . . . . . . . Searches Triggered . | . . . . . . . . Construction Impeded . | . . . . . . . . Haulers Reinforced . | . . . . . . . . Active Scanning Responses . | . . . . . . . . Cargo Convoy Interrupts . | . . . . . . . . Stealth | -11 -10 -10 -9 -9 -9 -8 -8 --------- Run | Yrd Mat Min Mat Min Exi Min Mat Distress Signals 3 | . 1 . 2 . . . . Communications Jammed . | . . . . . . . . Distress Signals . | . . . . . . . . Times Spotted 114 | . 34 11 19 18 . 1 31 Peak Tracking Total 7 | . 5 3 4 7 . 3 7 Tactical Retreats 6 | . 4 2 . . . . . Traps | -11 -10 -10 -9 -9 -9 -8 -8 ------- Run | Yrd Mat Min Mat Min Exi Min Mat Traps Triggered 4 | . 4 . . . . . . Indirectly . | . . . . . . . . Trap Hack Attempts . | . . . . . . . . Triggered . | . . . . . . . . Disarmed . | . . . . . . . . Reprogrammed . | . . . . . . . . Reused . | . . . . . . . . Traps Extracted . | . . . . . . . . Installed . | . . . . . . . . Triggered . | . . . . . . . . Machines | -11 -10 -10 -9 -9 -9 -8 -8 ---------- Run | Yrd Mat Min Mat Min Exi Min Mat Machines Disabled 9 | . . 2 . . . 7 . Max in Single Turn 2 | . . 2 . . . . . Machines Repaired . | . . . . . . . . Machines Dismantled . | . . . . . . . . Machines Sabotaged . | . . . . . . . . Overloaded Fab Kills . | . . . . . . . . Hacking | -11 -10 -10 -9 -9 -9 -8 -8 --------- Run | Yrd Mat Min Mat Min Exi Min Mat Machines Accessed 23 | . 6 2 9 . 1 . 5 Terminals 19 | . 5 1 8 . . . 5 Fabricators . | . . . . . . . . Repair Stations . | . . . . . . . . Recycling Units 1 | . 1 . . . . . . Scanalyzers 1 | . . . 1 . . . . Garrison Access . | . . . . . . . . Total Hacks 73 | . 16 6 33 . 1 . 17 Successful 46 | . 9 3 26 . 1 . 7 Failed 26 | . 7 3 6 . . . 10 Catastrophic 4 | . 1 1 1 . . . 1 Database Lockouts 1 | . . . 1 . . . . Manual 43 | . 13 5 15 . 1 . 9 Terminals 62 | . 13 5 27 . . . 17 Fabricators . | . . . . . . . . Repair Stations . | . . . . . . . . Recycling Units 3 | . 3 . . . . . . Scanalyzers 6 | . . . 6 . . . . Garrison Access . | . . . . . . . . Terminal Hacks 18 | . 2 3 11 . 1 . 1 Robot Analysis 3 | . . 2 1 . . . . Prototype ID Bank 2 | . . . 2 . . . . Open Door 1 | . . 1 . . . . . Branch Access Points 1 | . . . 1 . . . . Alert Level 1 | . . . 1 . . . . Unreport Threat 4 | . 1 . 2 . . . 1 Locate Traps 1 | . 1 . . . . . . Investigation Status 1 | . . . 1 . . . . Registered Components 1 | . . . 1 . . . . Zone Layout 2 | . . . 2 . . . . Derelict Proto ID Bank 1 | . . . . . 1 . . Fabricator Hacks . | . . . . . . . . Repair Station Hacks . | . . . . . . . . Recycling Unit Hacks . | . . . . . . . . Scanalyzer 6 | . . . 6 . . . . Insert Component 3 | . . . 3 . . . . Analyze 3 | . . . 3 . . . . Garrison Access Hacks . | . . . . . . . . Unauthorized Hacks 22 | . 7 . 9 . . . 6 Terminals 21 | . 6 . 9 . . . 6 Botnet 6 | . 1 . 4 . . . 1 Skim 15 | . 5 . 5 . . . 5 Fabricators . | . . . . . . . . Repair Stations . | . . . . . . . . Recycling Units 1 | . 1 . . . . . . Tunnel 1 | . 1 . . . . . . Scanalyzers . | . . . . . . . . Garrison Access . | . . . . . . . . Data Cores Recovered 1 | . . . 1 . . . . Used . | . . . . . . . . Hacking Detections 16 | . 5 1 5 . . . 5 Full Trace Events . | . . . . . . . . Feedback Events . | . . . . . . . . Feedback Blocked . | . . . . . . . . Robot Schematics Acquired . | . . . . . . . . Robots Built . | . . . . . . . . Authchips . | . . . . . . . . Time . | . . . . . . . . Total Robot Build Rating . | . . . . . . . . Part Schematics Acquired 3 | . . . 3 . . . . Parts Built . | . . . . . . . . Authchips . | . . . . . . . . Time . | . . . . . . . . Total Part Build Rating . | . . . . . . . . Parts Repaired . | . . . . . . . . Time . | . . . . . . . . Parts Recycled . | . . . . . . . . Recycled Matter . | . . . . . . . . Retrieved Matter . | . . . . . . . . Retrieved Components . | . . . . . . . . Parts Scanalyzed 3 | . . . 3 . . . . Part Schematics Acquired 3 | . . . 3 . . . . Parts Damaged . | . . . . . . . . Bothacking | -11 -10 -10 -9 -9 -9 -8 -8 ------------ Run | Yrd Mat Min Mat Min Exi Min Mat Used RIF Installer . | . . . . . . . . Robots Hacked . | . . . . . . . . Non-combat . | . . . . . . . . Combat . | . . . . . . . . Robot Hacks Applied . | . . . . . . . . Relay Couplers Released . | . . . . . . . . Fabnet Peak Effective % . | . . . . . . . . Robots Rewired 1 | . . . . 1 . . . Allies Hacked . | . . . . . . . . Hacks Repelled . | . . . . . . . . Allies | -11 -10 -10 -9 -9 -9 -8 -8 -------- Run | Yrd Mat Min Mat Min Exi Min Mat Total Allies 4 | . . 3 . 1 . . . Largest Group 3 | . . 3 1 1 1 1 . Highest-Rated Group 80 | . . 80 31 45 41 41 . Highest-Rated Ally 45 | . . 31 31 45 41 41 . Total Orders . | . . . . . . . . Ally Attacks 47 | . . 15 19 8 . 5 . Total Damage 1644 | . . 209 189 800 . 446 . Kills 24 | . . 4 2 12 . 6 . Allies Corrupted . | . . . . . . . . Allies Melted . | . . . . . . . . Intel | -11 -10 -10 -9 -9 -9 -8 -8 ------- Run | Yrd Mat Min Mat Min Exi Min Mat Robot Analysis Total 3 | . . 2 1 . . . . Derelict Logs Recovered 3 | . . 2 . 1 . . . Drone Launches . | . . . . . . . . Drone Recoveries . | . . . . . . . . Exploration | -11 -10 -10 -9 -9 -9 -8 -8 ------------- Run | Yrd Mat Min Mat Min Exi Min Mat Turns Passed 6560 | 77 1892 1107 1285 421 479 183 1116 Spaces Moved 3203 | 39 765 634 629 204 337 146 449 Core 14 | 14 . . . . . . . Treads 1347 | 25 765 557 . . . . . Legs 1024 | . . 77 629 204 114 . . Wheels 818 | . . . . . 223 146 449 Hover . | . . . . . . . . Flight . | . . . . . . . . Fastest Speed 50 | 50 160 160 190 190 105 120 120 Average Speed 159 | 153 160 164 190 190 139 120 120 Slowest Speed 250 | 250 160 240 190 190 190 120 150 Overloaded Moves . | . . . . . . . . Propulsion Burnouts . | . . . . . . . . Robots Hopped . | . . . . . . . . Cave-ins Triggered . | . . . . . . . . Exploration Rate (%) 56 | 5 90 97 55 61 70 31 40 Regions Visited 7 Branch Regions 4 Pre-discovered Areas 5 | . 1 1 2 1 . . . Known Exits Taken 3 | . . 1 1 . . 1 . Unknown Exits Taken 4 | 1 1 . . 1 1 . . Scrap Searched 3 | . . 1 . 2 . . . Spaces Dug 16 | . . . . . . . 16 Terrain Destroyed 133 | . . 50 . . . . 83 Melee . | . . . . . . . . Projectile 22 | . . . . . . . 22 AOE 111 | . . 50 . . . . 61 Terrain Rammed . | . . . . . . . . Walls Destroyed . | . . . . . . . . Machines Disabled . | . . . . . . . . Actions | -11 -10 -10 -9 -9 -9 -8 -8 --------- Run | Yrd Mat Min Mat Min Exi Min Mat Total 4370 | 49 1347 684 681 224 346 152 887 Wait 867 | 1 502 22 14 1 3 5 319 Move 3196 | 38 764 633 628 203 336 145 449 Hop . | . . . . . . . . Pick Up 38 | 1 16 5 4 2 1 . 9 Fast Attach 14 | 7 1 1 2 . . . 3 Attach 19 | . . . 2 1 2 . 14 Detach 6 | . . . . . . . 6 Swap 26 | . 9 5 4 1 1 1 5 Drop 27 | . 10 6 6 1 3 . 1 Fire 164 | 2 43 11 20 7 . . 81 Melee 1 | . . . . . . 1 . Ram . | . . . . . . . . Kick 1 | . . . 1 . . . . Crush 3 | . 2 1 . . . . . Escape Stasis . | . . . . . . . . Rewire 8 | . . . . 8 . . . Trap . | . . . . . . . . Miscellaneous . | . . . . . . . . Route ------- -11/Scrapyard -10/Materials (discovered 4 exits: *Mat x3 / *Min) -10/Mines (discovered 3 exits: *Mat x2 / Sub) -9/Materials (discovered 4 exits: Mat x3 / *Min) -9/Mines (discovered 2 exits: *Mat / *Exi) -9/Exiles (discovered 2 exits: [*Min x2]) -8/Mines -8/Materials (discovered 2 exits: *Fac x2) History --------- Turn | Location | Event 16 | -11/Scrapyard | Discovered new exit (range 16) 78 | -11/Scrapyard | Entered Materials 315 | -10/Materials | Build established: Mutant 714 | -10/Materials | Discovered new exit (range 8) 1203 | -10/Materials | Discovered new exit (range 6) 1586 | -10/Materials | Discovered new exit (range 13) 1753 | -10/Materials | Identified exit to Materials 1875 | -10/Materials | Loaded intel: 9 trap records 1922 | -10/Materials | Learned Storage stockpile data 1959 | -10/Materials | Learned Storage stockpile data 1970 | -10/Materials | Entered Mines 1999 | -10/Mines | Discovered exit to Materials (range 7) 2233 | -10/Mines | Discovered exit to Materials (range 11) 2241 | -10/Mines | Received a Mining Laser from a helpful Derelict 2373 | -10/Mines | A weapon hastily lodged in a ceiling crevice suddenly fell to the ground 2874 | -10/Mines | Met a Derelict shopkeep closing up shop 2909 | -10/Mines | Identified exit to Subcaves 3077 | -10/Mines | Entered Materials 3077 | -9/Materials | Accompanied by 1 ally 3077 | -9/Materials | Evolved 2 slots: Utility x2 3082 | -9/Materials | Led the pair of lost Derelicts to an unsafe place 3453 | -9/Materials | Central database locked down 3685 | -9/Materials | Build established: Scavenger-Mutant 3813 | -9/Materials | Identified exit to Materials 3841 | -9/Materials | Learned 4 Recycling zone layouts 3868 | -9/Materials | Learned 4 Recycling zone layouts 3876 | -9/Materials | Learned location of Zion (-6) 3920 | -9/Materials | Learned location of 1 exit from Storage 3995 | -9/Materials | Identified exit to Mines 4362 | -9/Materials | Entered Mines 4363 | -9/Mines | YI-UF0 nonchalantly dropped a Grenade Launcher on the ground 4523 | -9/Mines | Assembled infested the area 4589 | -9/Mines | Met 8R-AWN 4718 | -9/Mines | Learned location of Storage (-7) 4738 | -9/Mines | Discovered exit to Materials (range 15) 4775 | -9/Mines | Discovered new exit (range 5) 4783 | -9/Mines | Entered Exiles 4783 | -9/Exiles | Accompanied by 1 ally (YI-UF0) 4808 | -9/Exiles | Discovered new exit (range 15) 4831 | -9/Exiles | Welcomed by 8R-AWN 4861 | -9/Exiles | Met EX-HEX 4902 | -9/Exiles | Build established: Mutant 4915 | -9/Exiles | Met EX-BIN 4937 | -9/Exiles | Aligned with FarCom system 4939 | -9/Exiles | Given EX-Vault access code 4991 | -9/Exiles | Opened EX-Vault 5005 | -9/Exiles | Found YOLO Cannon 5027 | -9/Exiles | Warned to stay clear of 0b10 Research branches 5063 | -9/Exiles | Met EX-DEC 5245 | -9/Exiles | Discovered new exit (range 14) 5262 | -9/Exiles | Left Exiles lab with YOLO Cannon 5262 | -9/Exiles | Entered Mines 5262 | -8/Mines | Accompanied by 1 ally (YI-UF0) 5422 | -8/Mines | Discovered exit to Materials (range 8) 5443 | -8/Mines | Murdered YI-UF0 5445 | -8/Mines | Entered Materials 5445 | -8/Materials | Evolved 2 slots: Utility x1, Weapon x1 5562 | -8/Materials | Build established: Skirmisher 6124 | -8/Materials | Core integrity fell below 50% 6174 | -8/Materials | Destroyed 7 combat bots 6183 | -8/Materials | Lost 6 parts (1p1n2u2w) 6407 | -8/Materials | Discovered new exit (range 16) 6506 | -8/Materials | Identified exit to Factory 6548 | -8/Materials | Core integrity fell below 20% 6551 | -8/Materials | Learned Factory stockpile data 6561 | -8/Materials | Destroyed by G-50 Soldier with Heavy Laser Last Messages --------------- 06540_ K-01 Serf destroyed. 06542_ G-47 Trooper destroyed. 06544_ Minigun destroyed. 06544_ Acquired 41 matter. 06545_ Arm. Wheel destroyed. 06546_ M-28 Smith destroyed. 06547_ Critical hit (Burn: +37). 06548_ K-01 Serf collects debris. 06549_ U-05 Engineer builds a Wall. 06551_ >> SKIM: Stored Factory stockpile data. 06552_ Acquired 111 matter. 06553_ K-01 Serf collects debris. 06553_ Acquired 42 matter. 06553_ U-05 Engineer lays Concrete. 06555_ U-05 Engineer builds a Wall. 06555_ G-50 Soldier misfires. 06557_ K-01 Serf collects debris. 06559_ U-05 Engineer lays Concrete. 06560_ K-01 Serf collects debris. 06561_ U-05 Engineer lays Concrete. Map ----- +----------------------------------------------------+ | ???????????????????###########???????????????????? | | ???????????????##### #???????????????????? | | ??????#??####### # """ #???????????????????? | | ??????# """ # < # """ #???????????????????? | | ??????# """"" # # """ #???????????????????? | | ??????# """"" # + ""#???????????????????? | | ??????# """"" # # T"#???????????????????? | | ??????# """ + # ""#???????????????????? | | ??????# # # #???????????????????? | | ??????# # ###########???????????????????? | | ??????# # #?????????????????????????????? | | ??????# # #?????????????????????????????? | | ??????########## #?????????????????????????????? | | ??########?????# #?????????????????????????????? | | ??# #?????# #?????????????????????????????? | | ??# #?????# #?????????????????????????????? | | ??# """ #?????# #####?????????????????????????? | | ??# """ #####?# #"""#?????????????????????????? | | ??# """ ## ### #"R"#?????????????????????????? | | ??# ## ## #" "####??????????????????????? | | ??####+### ## #??????????????????????? | | ###### #?# ## #??????????????????????? | | # #?# ## ^ #??????????????????????? | | + #?# ## """ #??????????????????????? | | # #?# *[#T """ #??????????????????????? | | ###### ###= ==## """ @#??????????????????????? | | ???#! ###+### #####+######???????????? | | #### * =*%!g=g ????????? | | # T ! g [ k! * #???????????????? | | ! # [g* == #???????????????? | | ####### ; ;;;;###### ##???????????????? | | ############# # #??#????????????????? | | #???# = # #u #???????????????????? | | ##???# /a + #???????????????????? | | #????# # # #???????????????????? | | ############## ###########???????????????????? | | ## ??## ##########????????????????????? | | ## """ ""??# #????????????????????? | | # """ """## #????????????????????? | | #!""" R"## T ""???????????????????? | | T =" """## Y"???????????????????? | | # ## ""???????????????????? | | # ### ##???????????????????? | | ### #?# """ """ #????????????????????? | | #?###########?# """ """ #????????????????????? | | +##????????????# """ """? #????????????????????? | | #????????????# ????????????????????????? | | #????????????# ??? ???????????????????????? | | !#???????????? "????"""???????????????????????? | | #???????????? "??????????????????????????????? | +----------------------------------------------------+ Best States ------------- Heat Dissipation 41 Energy Generation 15 Energy Capacity 265 Matter Stores 300 Matter Capacity 300 Sight Range 16 Terrain Scan Range 16 Terrain Scan Density 10 Armor Coverage 225 Evasion (%) 40 Targeting Accuracy 6 Recoil Reduction 2 Item Schematics ----------------- Arm. Wheel | -9/Materials | Scanalyzed Hcp. Matter Pod | -9/Materials | Scanalyzed Imp. Sensor Array | -9/Materials | Scanalyzed Robot Schematics ------------------ None Fabricated ------------ Nothing Alien Tech Used ----------------- None Achievements -------------- None Challenges ------------ None Game ------ Seed MolecularShieldTendrils Manual? 0 Play Time 00:42:43 Cumulative 199.7 hours Start 2024.09.03 @ 14:21:31 End 2024.09.03 @ 15:58:37 Sessions 1 Manual Loads 0 Difficulty Rogue Special Mode None Game No. 174 Rogue 174 Adventurer 0 Explorer 0 Win Type - Total 1 Types 0/0/0/1/0/0/0/0/0 Lore% 63 Gallery% 72 Achievement% 54 Wizard Run 0 Options --------- Layout 2 ASCII 0 Keyboard 1 Movement Vi Keybinds 0 Fullscreen 1 Font 32/SmallcapsGlow Map View 77x44 Zoom Use 0% Tactical HUD 1 Map Filters NONE Filters NONE Steam 1 RUN: 3284a1a7-46cc-46ac-a4c5-4f85d1cf899a